{"text_format":"1","workbook":"xlsx","n_sheets":1,"sheets":["AGUA DULCE"],"not_rendered":{"charts":0,"images":1,"macros":1,"external_links":1,"defined_names":26,"comments":0,"pivot_tables":0},"unopened":[],"bounds":{"document_bytes":16777216,"sheet_cells":100000,"rows_first":2000,"rows_last":500,"rows_between":2000,"halvings":0,"cell_chars":16384,"cell_head_chars":4096},"cells_cut":0,"cells_raw":0,"read":"whole","date_system":"1900"}

{"sheet":"AGUA DULCE","index":0,"n_rows":141,"n_cols":11,"rows_kept":141,"cut":false,"hidden":false,"merged":[[47,6,48,6],[47,7,48,7],[1,3,6,5],[7,1,8,2],[40,3,44,5],[45,1,46,2],[47,1,48,1],[47,2,48,2],[47,3,48,3],[47,4,48,4],[47,5,48,5]]}
[]
[null,null,null,"Obra: Pavimentación con concreto hidráulico de la Calle Agua Dulce, tramo Davis a Paseo Adolfo López Mateos, en la Ciudad de Loreto, Municipio de Loreto, B.C.S."]
[]
[]
[]
[]
[]
[null,"DIRECCION DE INFRAESTRUCTURA VIAL Y MOVILIDAD URBANA ",null,"UBICACIÓN : CD. LORETO",null,null,"LICITACIÓN No.  LPO-000000007-012-2021","CATALOGO DE CONCEPTOS Y"]
[null,null,null,"MUNICIPIO : LORETO, B.C.S.",null,null,"CONCURSO No.  FOIS-SF-05-2021/07","CANTIDADES DE OBRA."]
[]
[null,null,"R  E  S  U  M  E  N"]
[]
[null,"I.-","SANEAMIENTO DE AGUA POTABLE",null,null,null,null,{"$f":"H75","v":0}]
[null,"II.-","SANEAMIENTO DE LA RED DE DRENAJE",null,null,null,null,{"$f":"H95","v":0}]
[null,"III.-","GUARNICIONES",null,null,null,null,{"$f":"H102","v":0}]
[null,"IV.-","CONSTRUCCION DE BANQUETAS",null,null,null,null,{"$f":"H113","v":0}]
[null,"V.-","TERRACERIAS",null,null,null,null,{"$f":"H123","v":0}]
[null,"VI.-","PAVIMENTACION",null,null,null,null,{"$f":"H132","v":0}]
[null,"VII.-","SEÑALAMIENTO VERTICAL Y HORIZONTAL",null,null,null,null,{"$f":"H140","v":0}]
[]
[]
[null,null,null,null,null,null,"SUBTOTAL :",{"$f":"SUM(H13:H19)","v":0},{"$f":"I141","v":0}]
[null,null,null,null,null,null,"IVA:",{"$f":"ROUND(0.16*H22,2)","v":0}]
[]
[null,null,null,null,null,null,"TOTAL:",{"$f":"H22+H23","v":0}]
[]
[]
[]
[null,null,"IMPORTE DE LA PROPUESTA: $ 000000 Pesos 00/100 m.n.) INCLUYE EL I.V.A.",null,null," "," "]
[]
[]
[]
[]
[]
[null,null,null,null,null,null," "]
[]
[]
[]
[]
[]
[null,null,null,{"$f":"D2","v":"Obra: Pavimentación con concreto hidráulico de la Calle Agua Dulce, tramo Davis a Paseo Adolfo López Mateos, en la Ciudad de Loreto, Municipio de Loreto, B.C.S."}]
[]
[]
[]
[null,null,null,null,null,null,null,null,null,null,{"$f":"K44/1.16","v":0}]
[null,"DIRECCION DE INFRAESTRUCTURA VIAL Y MOVILIDAD URBANA ",null,{"$f":"D8","v":"UBICACIÓN : CD. LORETO"},null,null,{"$f":"G8","v":"LICITACIÓN No.  LPO-000000007-012-2021"},"CATALOGO DE CONCEPTOS Y"]
[null,null,null,{"$f":"D9","v":"MUNICIPIO : LORETO, B.C.S."},null,null,{"$f":"G9","v":"CONCURSO No.  FOIS-SF-05-2021/07"},"CANTIDADES DE OBRA."]
[null,"CLAVE","C O N C E P T O","UNIDAD","CANTIDAD","PRECIO\nUNITARIO","PRECIO UNITARIO\n(CON LETRA)","IMPORTE"]
[]
[null,null,"I.-SANEAMIENTO DE AGUA POTABLE"]
[null,1,"EXCAVACIÓN POR MEDIOS MECANICOS, EN ZANJAS, EN TERRENO CON CUALQUIER CLASIFICACION Y PROFUNDIDAD EN PRESENCIA DE AGUA O EN SECO, RETIRO DEL MATERIAL HASTA 4 M DE DISTANCIA HORIZONTAL, EL PRECIO UNITARIO INCLUYE: TRAZO Y NIVELACION, EQUIPO DE BOMBEO PARA ACHIQUE, OBRAS DE PROTECCION DE TALUDES DE ZANJA, TRASPALEO, SEÑALAMIENTO PREVENTIVO, LA MANO DE OBRA PARA EL APOYO EN LAS OPERACIONES MECÁNICAS, AFINE DE TALUDES Y FONDO DE ZANJA, LIMPIEZA, LA MAQUINARIA, HERRAMIENTA Y EL EQUIPO NECESARIOS PARA LA CORRECTA EJECUCIÓN DE LOS TRABAJOS. PUOT","M3",357.12," ",{"$f":"num_letras(F51)","v":{"$error":"#NAME?"}},{"$f":"ROUND(E51*F51,2)","v":0},{"$f":"ROUND(E51*F51,2)","v":0}]
[null,{"$f":"B51+1","v":2},"EXCAVACIÓN POR MEDIOS MANUALES, EN ZANJAS, EN TERRENO CON CUALQUIER CLASIFICACION Y PROFUNDIDAD EN PRESENCIA DE AGUA O EN SECO, RETIRO DEL MATERIAL HASTA 4 M DE DISTANCIA HORIZONTAL, EL PRECIO UNITARIO INCLUYE: TRAZO Y NIVELACION, EQUIPO DE BOMBEO PARA ACHIQUE, OBRAS DE PROTECCION DE TALUDES DE ZANJA, TRASPALEO, SEÑALAMIENTO PREVENTIVO, AFINE DE TALUDES Y FONDO DE ZANJA, LIMPIEZA, LA MANO DE OBRA, EQUIPO Y HERRAMIENTA NECESARIOS PARA LA CORRECTA EJECUCIÓN DE LOS TRABAJOS. PUOT","M3",15," ",{"$f":"num_letras(F52)","v":{"$error":"#NAME?"}},{"$f":"ROUND(E52*F52,2)","v":0},{"$f":"ROUND(E52*F52,2)","v":0}]
[null,{"$f":"B52+1","v":3},"PLANTILLA COMPACTADA CON EQUIPO MECANICO DE 10 CMS. DE ESPESOR EN ZANJAS, CON MATERIAL SELECCIONADO PRODUCTO DE EXCAVACION LIBRE DE BOLEO MAYOR DE 3\". INCLUYE: CRIBADO DEL MATERIAL, ACARREOS DENTRO DE LA OBRA, INCORPORACION DE HUMEDAD, COMPACTACION DEL 85% PROCTOR, MANO DE OBRA, , HERRAMIENTA Y EQUIPO NECESARIO.","M3",19.5," ",{"$error":"#NAME?"},0,0]
[null,4,"PLANTILLA COMPACTADA CON EQUIPO MECANICO DE 10 CMS. DE ESPESOR EN ZANJAS, CON MATERIAL SELECCIONADO PRODUCTO DE BANCO LIBRE DE BOLEO MAYOR DE 3\". INCLUYE: CRIBADO DEL MATERIAL, ACARREOS DENTRO DE LA OBRA, INCORPORACION DE HUMEDAD, COMPACTACION DEL 85% PROCTOR, MANO DE OBRA, HERRAMIENTA Y EQUIPO NECESARIO.","M3",17," ",{"$error":"#NAME?"},0,0]
[null,{"$f":"B54+1","v":5},"TOMA DE AGUA POTABLE DE 3\"\"x1/2\"\" CON TUBO KITEC DE 1/2\"\" DE DIAMETRO. INCLUYE: ABRAZADERA DE PVC TIPO-II. C/VALVULA DE INSER.Y SACABOCADO INTEGRADO FLOTAP DE 3\"\"x3/4\"\", REDUCCION DE 3/4\"\" A 1/2\"\", INSERTOS Y CONECTORES PARA KITEC, TUBO KITEC DE 1/2\"\" DE DIAM. VALVULA DE ANGULO TIPO BOLA, VALVULA MUNICIPAL DE BLOQUEO SENCILLO, CAJA DE PROTECCION DE PVC DE COLOR NEGRO REFORZADA DE 5 KG DE PESO (CON UNA RESISTENCIA MAXMA DE 4000 KG); CON LAS SIGUIENTES MEDIDAS: EN LA PARTE SUPERIOR DE 34x21 CM. Y BASE DE 42x30 CM. (INCLUYE CEJA PERIMETRAL DE 1.5 CM DE ANCHO Y 2.5 CM DE ESPESOR). CON ALTURA TOTAL DE 18.50 CM.  COLOCADA DE PLANTILLA DE MORTERO DE CEMENTO-ARENA 1:3 DE 6 CM DE ESPESOR, PREVIO EL NIVELADO Y COMPACTACION DEL TERRENO NATURAL. MATERIALES, MANO DE OBRA Y HERRAMIENTA. PARA RED DE AGUA POTABLE DE PVC HIDRAULICO DE 3\" ( 76 MM) DE DIAMETRO. SONDEOS PARA LOCALIZACION DE LA TOMA, DEMOLICIONES NECESARIAS PARA SU INSTALACION, REPARACION PROVISIONAL DE TOMA DOMICILIARIA; INTERCONEXIONES EN TUBO DE COBRE, MANGUERA HIDRAULICA Y/O P.V.C. HIDRAULICO CED. 40 SEGUN SEA EL CASO. U.O.T.\n(LONGITUD DE 9.00 M)","PZA",13," ",{"$error":"#NAME?"},{"$f":"ROUND(E55*F55,2)","v":0},0]
[null,6,"TOMA DE AGUA POTABLE DE 3\"\"x1/2\"\" CON TUBO KITEC DE 1/2\"\" DE DIAMETRO. INCLUYE: ABRAZADERA DE PVC TIPO-II. C/VALVULA DE INSER.Y SACABOCADO INTEGRADO FLOTAP DE 3\"\"x3/4\"\", REDUCCION DE 3/4\"\" A 1/2\"\", INSERTOS Y CONECTORES PARA KITEC, TUBO KITEC DE 1/2\"\" DE DIAM. VALVULA DE ANGULO TIPO BOLA, VALVULA MUNICIPAL DE BLOQUEO SENCILLO, CAJA DE PROTECCION DE PVC DE COLOR NEGRO REFORZADA DE 5 KG DE PESO (CON UNA RESISTENCIA MAXMA DE 4000 KG); CON LAS SIGUIENTES MEDIDAS: EN LA PARTE SUPERIOR DE 34x21 CM. Y BASE DE 42x30 CM. (INCLUYE CEJA PERIMETRAL DE 1.5 CM DE ANCHO Y 2.5 CM DE ESPESOR). CON ALTURA TOTAL DE 18.50 CM. COLOCADA DE PLANTILLA DE MORTERO DE CEMENTO-ARENA 1:3 DE 6 CM DE ESPESOR, PREVIO EL NIVELADO Y COMPACTACION DEL TERRENO NATURAL. MATERIALES, MANO DE OBRA Y HERRAMIENTA. PARA RED DE AGUA POTABLE DE PVC HIDRAULICO DE 3\" ( 76 MM) DE DIAMETRO. SONDEOS PARA LOCALIZACION DE LA TOMA, DEMOLICIONES NECESARIAS PARA SU INSTALACION, REPARACION PROVISIONAL DE TOMA DOMICILIARIA; INTERCONEXIONES EN TUBO DE COBRE, MANGUERA HIDRAULICA Y/O P.V.C. HIDRAULICO CED. 40 SEGUN SEA EL CASO. U.O.T.\n(LONGITUD DE 4.00 M)\n","PZA",8," ",{"$error":"#NAME?"},0,0]
[null,7,"RELLENO COMPACTADO CON EQUIPO MECANICO MANUAL EN CAPAS DE 20 CMS. EN CEPA, CON MATERIAL SELECCIONADO PRODUCTO DE LA EXCAVACION (CRIBADO POR LA MALLA DE 2 1/2\") LIBRE DE BOLEO MAYOR DE 3\" , COMPACTADO AL 90% PROCTOR. INCLUYE: CRIBADO DEL MATERIAL, ACARREOS DENTRO DE LA OBRA, INCORPORACION DE HUMEDAD, MANO DE OBRA, HERRAMIENTA Y EQUIPO NECESARIO.","M3",193," ",{"$error":"#NAME?"},0,0]
[null,8,"RELLENO COMPACTADO CON EQUIPO MECANICO MANUAL EN CAPAS DE 20 CMS. EN CEPA, CON MATERIAL SELECCIONADO PRODUCTO DE BANCO LIBRE DE BOLEO MAYOR DE 3\" , COMPACTADO AL 90% PROCTOR. INCLUYE: CRIBADO DEL MATERIAL, ACARREOS DENTRO DE LA OBRA, INCORPORACION DE HUMEDAD, MANO DE OBRA, HERRAMIENTA Y EQUIPO NECESARIO.","M3",180," ",{"$error":"#NAME?"},0,0]
[null,9,"REPOSICION DE TUBERIA DE ASBESTO CEMENTO DE 3\" DE DIAMETRO POR TUBERIA DE PVC. HIDRAULICO ANGER (RD-32.5) DE 3\" DE DIAMETRO. INCLUYE: TRAZO, NIVELACION, SUMINISTRO, INSTALACION, JUNTEO, LIMPIEZA,PRUEBA HIDRAULICA,SONDEO PARA LA LOCALIZACION DE TUBERIA, MANO DE OBRA Y HERRAMIENTA, U.O.T.","ML",272," ",{"$error":"#NAME?"},0,0]
[null,10,"SUMINISTRO E INSTALACION DE VALVULA DE Fo.Fo. BRIDADA TIPO COMPUERTA VASTAGO FIJO DE 3\"  DE DIAMETRO. INCLUYE: MANIOBRAS, INSTALACION, LIMPIEZA, PRUEBA HIDRAULICA, MANO DE OBRA Y  HERRAMIENTA.","PZA",1," ",{"$error":"#NAME?"},0,0]
[null,11,"SUMINISTRO E INSTALACION DE TEE DE PVC. HIDRAULICO ANGER DE 3\"x3\" DE DIAMETRO. INCLUYE: MANIOBRAS, INSTALACION, LIMPIEZA, PRUEBA HIDRAULICA, MANO DE OBRA Y HERRAMIENTA.","PZA",2," ",{"$error":"#NAME?"},0,0]
[null,12,"SUMINISTRO E INSTALACION DE EXTREMIDAD CAMPANA DE PVC HIDRAULICO ANGER DE 3\" DE DIAMETRO. INCLUYE: MANIOBRAS, INSTALACION, LIMPIEZA, PRUEBA HIDRAULICA, MANO DE OBRA Y  HERRAMIENTA.","PZA",1," ",{"$error":"#NAME?"},0,0]
[null,13,"SUMINISTRO E INSTALACION DE EXTREMIDAD ESPIGA DE PVC HIDRAULICO ANGER DE 3\" DE DIAMETRO. INCLUYE: MANIOBRAS, INSTALACION, LIMPIEZA, PRUEBA HIDRAULICA, MANO DE OBRA Y  HERRAMIENTA.","PZA",1," ",{"$error":"#NAME?"},0,0]
[null,14,"SUMINISTRO E INSTALACION DE TAPON CAMPANA DE PVC. HIDRAULICO ANGER DE 3\" DE DIAMETRO. INCLUYE: MANIOBRAS, INSTALACION, LIMPIEZA, PRUEBA HIDRAULICA, MANO DE OBRA Y HERRAMIENTA.","PZA",2," ",{"$error":"#NAME?"},0,0]
[null,15,"SUMINISTRO E INSTALACION DE COPLE REPARACION DE PVC HIDRAULICO ANGER DE 3\" DE DIAMETRO. INCLUYE: MANIOBRAS, INSTALACION, LIMPIEZA, PRUEBA HIDRAULICA, MANO DE OBRA Y  HERRAMIENTA.","PZA",2," ",{"$error":"#NAME?"},0,0]
[null,16,"SUMINISTRO E INSTALACION DE EMPAQUE DE NEOPRENO DE 3\" DE DIAMETRO. INCLUYE: MANIOBRAS, INSTALACION, LIMPIEZA, PRUEBA HIDRAULICA, MANO DE OBRA Y  HERRAMIENTA.","PZA",2," ",{"$error":"#NAME?"},0,0]
[null,17,"SUMINISTRO E INSTALACION DE TORNILLOS CON TUERCA Y CABEZA HEXAGONAL DE 5/8\" x 3 1/2\"  DE DIAMETRO. INCLUYE: MANIOBRAS, INSTALACION, LIMPIEZA, PRUEBA HIDRAULICA, MANO DE OBRA Y  HERRAMIENTA.","PZA",8," ",{"$error":"#NAME?"},0,0]
[null,18,"DEMOLICION TOTAL DE CAJA DE OPERACION DE VALVULAS POR CAMBIO DE TRAZO, PARA DAR LOS NIVELES DE PROYECTO Y PERMITIR EL TRANSITO DEL EQUIPO DE CONSTRUCCION. INCLUYE: CARGA Y RETIRO DE ESCOMBRO FUERA DE LA OBRA HASTA EL LUGAR INDICADO POR SUPERVISION, MANO DE OBRA, HERRAMIENTA Y EQUIPO NECESARIO.","PZA",1," ",{"$error":"#NAME?"},0,0]
[null,19,"ELABORACION DE TAPA PROVISIONAL DE MADERA PARA CAJA DE OPERACIÓN DE VALVULAS, SEGÚN PROYECTO. INCLUYE: COLOCACION, MATERIALES, MANO DE OBRA Y HERRAMIENTA.","PZA",1," ",{"$error":"#NAME?"},0,0]
[null,20,"SUMINISTRO Y COLOCACION DE MARCO CON TAPA DE Fo.Fo. DE 50 x 50 CMS. CON PESO DE 75 KG. CON LEYENDA DE AGUA POTABLE. INCLUYE: MANIOBRAS, ACARREOS, MATERIAL, MANO DE OBRA Y HERRAMIENTA","PZA",1," ",{"$error":"#NAME?"},0,0]
[null,21,"SUMINISTRO Y COLOCACION DE CONTRAMARCO SENCILLO DE 1.10 MTS. CON CANAL DE 4\" DE PERALTE. INCLUYE: MANIOBRAS, ACARREOS, MATERIAL, MANO DE OBRA Y HERRAMIENTA.","PZA",1," ",{"$error":"#NAME?"},0,0]
[null,22,"CONSTRUCCION DE CAJA DE OPERACION DE VALVULA TIPO 5 DE (1.30 x 0.90 M). MEDIDA INTERIOR,  A BASE DE BLOCK 15x20x40 CM, ACABADO COMUN. ASENTADO Y APLANADO INTERIOR FULIDO CON MORTERO DE CEMENTO-ARENA EN PROPORCION DE 1:3. CIMENTACION CON LOSA DE CONCRETO F'C=200 KG/CM². T.M.A. 3/4\", REV. NORMAL DE 10 CM DE ESPESOR, ARMADO CON VARILLA DEL No. 3 @ 10 CM AMBOS SENTIDOS. REFUERZO VERTICAL CON VARILLAS DEL No. 3 @ 60 CM EN CELDAS AHOGADAS CON CONCRETO F'C=150 KG/CM². T.M.A. 3/4\" REV. NORMAL. CADENA DE CERRAMIENTO CON CONCRETO F'C=150 KG/CM². T.M.A. 3/4\" REV. NORMAL DE 10 CM, DE 15x15 CM ARMADA CON 4 VARILLAS DEL No. 3 Y ESTRIBOS DE 1/4\" @ 20 CM. LOSA DE CONCRETO F'C=250 KG/CM². T.M.A. 3/4\" REV. NORMAL DE 15 CMS. DE ESPESOR. ARMADO CON VARILLA DEL No. 3 @ 15 CM AMBOS SENTIDOS. INCLUYE: EXCAVACION, RELLENO COMPACTADO\nAL 85% EN CAPAS DE 20 CM DE ESPESOR, HABILITADO, TRASLAPES, AMARRES DEL ACERO, CIMBRADO Y DESCIMBRADO CON MADERA DE PINO,  MATERIALES , MANO DE OBRA Y HERRAMIENTA. (SIN CONTRAMARCO Y MARCO CON TAPA DE Fo.Fo.)\n","PZA",1," ",{"$error":"#NAME?"},0,0]
[null,23,"CONSTRUCCION DE  ATRAQUES DE CONCRETO F´C= 200 KG/CM2  T.M.A. 3/4\"  REV. NORMAL ELABORADO EN OBRA INCLUYE:  ELABORACION, COLADO Y VIBRADO DE CONCRETO, CIMBRADO Y DESCIMBRADO, MATERIALES , MANO DE OBRA, HERRAMIENTA Y EQUIPO NECESARIO.","M3",4," ",{"$error":"#NAME?"},0,0]
[null,24,"CARGA Y RETIRO DE MATERIAL MIXTO, SOBRANTE NO UTILIZABLE PRODUCTO DE LOS TRABAJOS REALIZADOS, FUERA DE LA OBRA HASTA EL SITIO AUTORIZADO, SEGUN LO INDIQUE LA SUPERVISION. INCLUYE: ACARREOS DENTRO DE LA OBRA, MANO DE OBRA, HERRAMIENTA Y EQUIPO NECESARIO.","M3",10," ",{"$error":"#NAME?"},0,0]
[null,null,"SUB TOTAL : SANEAMIENTO DE AGUA POTABLE",null,null," ",null,{"$f":"SUM(H51:H74)","v":0},0]
[null,null,"II.- SANEAMIENTO DE LA RED DE DRENAJE",null,null,null,null,null,0]
[null,1,"EXCAVACIÓN POR MEDIOS MECANICOS, EN ZANJAS, EN TERRENO CON CUALQUIER CLASIFICACION Y PROFUNDIDAD EN PRESENCIA DE AGUA O EN SECO, RETIRO DEL MATERIAL HASTA 4 M DE DISTANCIA HORIZONTAL, EL PRECIO UNITARIO INCLUYE: TRAZO Y NIVELACION, EQUIPO DE BOMBEO PARA ACHIQUE, OBRAS DE PROTECCION DE TALUDES DE ZANJA, TRASPALEO, SEÑALAMIENTO PREVENTIVO, LA MANO DE OBRA PARA EL APOYO EN LAS OPERACIONES MECÁNICAS, AFINE DE TALUDES Y FONDO DE ZANJA, LIMPIEZA, LA MAQUINARIA, HERRAMIENTA Y EL EQUIPO NECESARIOS PARA LA CORRECTA EJECUCIÓN DE LOS TRABAJOS. PUOT","M3",757.87," ",{"$error":"#NAME?"},{"$f":"ROUND(E77*F77,2)","v":0},0]
[null,{"$f":"B77+1","v":2},"EXCAVACIÓN POR MEDIOS MANUALES, EN ZANJAS, EN TERRENO CON CUALQUIER CLASIFICACION Y PROFUNDIDAD EN PRESENCIA DE AGUA O EN SECO, RETIRO DEL MATERIAL HASTA 4 M DE DISTANCIA HORIZONTAL, EL PRECIO UNITARIO INCLUYE: TRAZO Y NIVELACION, EQUIPO DE BOMBEO PARA ACHIQUE, OBRAS DE PROTECCION DE TALUDES DE ZANJA, TRASPALEO, SEÑALAMIENTO PREVENTIVO, AFINE DE TALUDES Y FONDO DE ZANJA, LIMPIEZA, LA MANO DE OBRA, EQUIPO Y HERRAMIENTA NECESARIOS PARA LA CORRECTA EJECUCIÓN DE LOS TRABAJOS. PUOT","M3",10.56," ",{"$error":"#NAME?"},0,0]
[null,{"$f":"B78+1","v":3},"PLANTILLA COMPACTADA CON EQUIPO MECANICO DE 10 CMS. DE ESPESOR EN ZANJAS, CON MATERIAL SELECCIONADO PRODUCTO DE EXCAVACION LIBRE DE BOLEO MAYOR DE 3\". INCLUYE: CRIBADO DEL MATERIAL, ACARREOS DENTRO DE LA OBRA, INCORPORACION DE HUMEDAD, COMPACTACION DEL 85% PROCTOR, MANO DE OBRA, , HERRAMIENTA Y EQUIPO NECESARIO.","M3",12.5," ",{"$error":"#NAME?"},0,0]
[null,4,"PLANTILLA COMPACTADA CON EQUIPO MECANICO DE 10 CMS. DE ESPESOR EN ZANJAS, CON MATERIAL SELECCIONADO PRODUCTO DE BANCO LIBRE DE BOLEO MAYOR DE 3\". INCLUYE: CRIBADO DEL MATERIAL, ACARREOS DENTRO DE LA OBRA, INCORPORACION DE HUMEDAD, COMPACTACION DEL 85% PROCTOR, MANO DE OBRA, HERRAMIENTA Y EQUIPO NECESARIO.","M3",10.42," ",{"$error":"#NAME?"},0,0]
[null,5,"RELLENO COMPACTADO CON EQUIPO MECANICO MANUAL EN CAPAS DE 20 CMS. EN CEPA, CON MATERIAL SELECCIONADO PRODUCTO DE LA EXCAVACION (CRIBADO POR LA MALLA DE 2 1/2\") LIBRE DE BOLEO MAYOR DE 3\" , COMPACTADO AL 90% PROCTOR. INCLUYE: CRIBADO DEL MATERIAL, ACARREOS DENTRO DE LA OBRA, INCORPORACION DE HUMEDAD, MANO DE OBRA, HERRAMIENTA Y EQUIPO NECESARIO.","M3",410," ",{"$error":"#NAME?"},0,0]
[null,6,"RELLENO COMPACTADO CON EQUIPO MECANICO MANUAL EN CAPAS DE 20 CMS. EN CEPA, CON MATERIAL SELECCIONADO PRODUCTO DE BANCO LIBRE DE BOLEO MAYOR DE 3\" , COMPACTADO AL 90% PROCTOR. INCLUYE: CRIBADO DEL MATERIAL, ACARREOS DENTRO DE LA OBRA, INCORPORACION DE HUMEDAD, MANO DE OBRA, HERRAMIENTA Y EQUIPO NECESARIO.","M3",347.87," ",{"$error":"#NAME?"},0,0]
[null,7,"REPOSICION DE TUBERIA DE ALBAÑAL DE CONCRETO DE 8\" DE DIAM. POR TUBERIA DE PVC SANITARIO CON COPLE INTEGRAL (SRD-35) DE 8\" DE DIAMETRO. CON PRESCENCIA DE AGUAS NEGRAS. INCLUYE: SUMINISTRO DE TUBO, MATERIAL, MANIOBRAS, EQUIPO PARA TAPONAMIENTO, CONEXION E INTERCONEXION DEL TUBO A POZOS DE VISITA (CONSTRUIDOS Y/O EXISTENTES),  MANO DE OBRA Y HERRAMIENTA, REPARACION PROVISIONAL DE DESCARGAS DOMICILIARIAS, SONDEO PARA LA LOCALIZACION DE TUBERIA, U.O.T.","ML",272," ",{"$error":"#NAME?"},0,0]
[null,8,"SUMINISTRO E INSTALACION DE TUBO DE PVC SANITARIO CON COPLE INTEGRAL Y ANILLO (SRD-35) DE 6\" DE DIAMETRO. PARA DESCARGA DOMICILIARIA, CON PRESCENCIA DE AGUAS NEGRAS. INCLUYE: TRAZO, NIVELACION, SUMINISTRO DE TUBO, MANIOBRAS, ACARREO DE TUBO, JUNTEO, MATERIAL, MANO DE OBRA Y HERRAMIENTA. SONDEO PARA LA LOCALIZACION DE DESCARGA, U.O.T.","ML",130," ",{"$error":"#NAME?"},0,0]
[null,{"$f":"B84+1","v":9},"SUMINISTRO Y COLOCACION DE SILLETAS  DE P.V.C. SANITARIA  DE 8\" x 6\"  DE DIAMETRO, PARA CONEXION DE DESCARGA DOMICILIARIA A LA RED MUNICIPAL. INCLUYE: ABRAZADERAS GALVANIZADA DE 8\" DE DIAMETRO, PEGAMENTO, MATERIAL, MANO DE OBRA Y HERRAMIENTA.","PZA",20," ",{"$error":"#NAME?"},0,0]
[null,{"$f":"B85+1","v":10},"SUMINISTRO Y COLOCACION DE CODO 45º x 6\" DE DIAMETRO DE P.V.C. SANITARIO. PARA  DESCARGA  DOMICILIARIA.  INCLUYE: MANIOBRAS, EMPAQUES, MATERIALES, MANO DE OBRA Y HERRAMIENTA.","PZA",20," ",{"$error":"#NAME?"},0,0]
[null,11,"CONSTRUCCION DE REGISTRO SANITARIO DE 40x60 CM Y HASTA 1.20 M DE PROFUNDIDAD MEDIDA INTERIOR. A BASE DE BLOCK HUECO DE 15x20x40 CM. JUNTEADO Y APLANADO CON MORTERO DE CEMENTO-ARENA EN PROPORCION 1:4, ACABADO PULIDO INTERIOR. CON MEDIA CAÑA DE CONCRETO, TAPA DE CONCRETO F'c=150 kg/cm2. T.M.A. 19 MM (3/4\") REV. NORMAL.  (TAPA COLADA EN SITIO DE ACUERDO A LOS ACABADOS DE BANQUETAS SEGÚN PROYECTO), ARMADO CON VARILLA CORRUGADA DEL No.3 @ 10 CM, AMBOS SENTIDOS SOLDADAS, MARCO A BASE DE ANGULO DE FIERRO DE 1 1/2\" x 1 1/2\" x 1/8\" Y CONTRAMARCO CON ANGULO DE FIERRO DE 2\" x 2\" x 1/8\" DE ESPESOR. INCLUYE: DEMOLICIONES DE REGISTRO EXISTENTE DE SER NECESARIO, CARGA Y RETIRO DE MATERIAL NO UTILIZABLE FUERA DE LA OBRA, HASTA EL LUGAR INDICADO POR SUPERVISION, EXCAVACION Y RELLENO COMPACTADO AL 85%  EN CAPAS DE 20 CMS., MATERIALES, MANO DE OBRA Y HERRAMIENTA. (LA TAPA DE CONCRETO DEBERA SER REFORZADA CUANDO QUEDE EN LA ZONA DE ACCESO VEHICULAR)","PZA",20," ",{"$error":"#NAME?"},0,0]
[null,12,"DEMOLICION DE POZO DE VISITA TIPO COMUN HASTA 3.00 MTS DE PROFUNDIDAD, POR NO DAR NIVELES Y/O ALINEACION DE LA RED DE ALCANTARILLADO DE PROYECTO, INCLUYE: CARGA Y RETIRO DE ESCOMBRO FUERA DE LA OBRA HASTA EL LUGAR INDICADO POR LA SUPERVISION, MANO DE OBRA, HERRAMIENTA Y EQUIPO NECESARIO.","PZA",2," ",{"$error":"#NAME?"},{"$f":"ROUND(E88*F88,2)","v":0},0]
[null,13,"ELABORACION DE TAPA DE PROVISIONAL DE MADERA PARA POZO DE VISITA PARA PERMITIR EL TRANSITO DEL EQUIPO DE  CONSTRUCCION. INCLUYE: COLOCACION, MATERIALES, MANO DE OBRA Y HERRAMIENTA.","PZA",2," ",{"$error":"#NAME?"},0,0]
[null,14,"SUMINISTRO Y COLOCACION DE BROCAL DE Fo.Fo. CIEGO TIPO PESADO PARA POZO DE VISITA, INCLUYE: LOSA DE 1.20x1.20 M CON CONCRETO F'C= 250 KG/CM2 DE 10 CM DE ESPESOR. ACABADO EXTERIOR RAYADO CON BROCHA DE PELO, ARMADA CON VARILLA CORRUGADA DEL No.3 @ 10 CM AMBOS SENTIDOS, VARILLA CORRUGADA DEL No.3 SOLDADA AL PERIMETRO DEL BROCAL PARA AMARRE DEL ARMADO DE LA PARILLA, CARGA Y RETIRO DEL MATERIAL NO UTILIZABLE FUERA DE OBRA, HASTA LUGAR INDICADO, ACARREOS, GANCHOS, TRASLAPES, HABILITADO Y ARMADO, CIMBRA EN FRONTERAS, CORTE CON CORTADORA DE DISCO DE ACUERDO A SECCION, MANIOBRAS, MATERIAL, MANO DE OBRA Y HERRAMIENTA. ACABADO RAYADO CON BROCHA DE PELO DEL CONCRETO.","PZA",2," ",{"$error":"#NAME?"},0,0]
[null,15,"CONSTRUCCION DE POZO DE VISITA TIPO COMUN DE 2.00 M DE PROFUNDIDAD INTERIOR, LOSA DE CIMENTACION DE CONCRETO F´c=200 Kg/cm2. REV. NORMAL. T.M.A. 3/4\" DE 20 CM DE ESPESOR. ARMADA CON VARILLA CORRUGADA DEL No. 4 (1/2\") @ 15 CM EN AMBOS SENTIDOS, MEDIA CAÑA PULIDA DE LA 1/2 DEL DIAMETRO, Y CHAFLANES DE CONCRETO HASTA LA PARTE SUPERIOR DEL TUBO, MURO DE TABIQUE TIPO CUÑA DE 12 CM DE PERALTE. JUNTEADO Y APLANADO CON MORTERO DE CEMENTO-ARENA 1:4, APLANADO INTERIOR PULIDO, ANILLO PROTECTOR DE CONCRETO ARMADO  DE 20 CM DE ESPESOR PARA RECIBIR EL BROCAL, SUMINISTRO Y COL. DE ESCALERA MARINA A BASE DE VARILLA CORRUGADA DEL No.8 (1\"). HUELLA DE 50 CM. CON UNA SEPARACION @ 40 CM (CON PRIMER ANTICORROSIVO). MATERIALES, MANO DE OBRA Y HERRAMIENTA. INCLUYE: EXCAVACION, RELLENO COMPACTADO AL 95% EN CAPAS DE 20 CM (NO INCLUYE BROCAL DE Fo.Fo.)","PZA",2," ",{"$error":"#NAME?"},0,0]
[null,16,"CONSTRUCCION DE POZO DE VISITA TIPO COMUN DE 2.50 M DE PROFUNDIDAD INTERIOR, LOSA DE CIMENTACION DE CONCRETO F´c=200 Kg/cm2. REV. NORMAL. T.M.A. 3/4\" DE 20 CM DE ESPESOR. ARMADA CON VARILLA CORRUGADA DEL No. 4 (1/2\") @ 15 CM EN AMBOS SENTIDOS, MEDIA CAÑA PULIDA DE LA 1/2 DEL DIAMETRO, Y CHAFLANES DE CONCRETO HASTA LA PARTE SUPERIOR DEL TUBO, MURO DE TABIQUE TIPO CUÑA DE 12 CM DE PERALTE. JUNTEADO Y APLANADO CON MORTERO DE CEMENTO-ARENA 1:4, APLANADO INTERIOR PULIDO, ANILLO PROTECTOR DE CONCRETO ARMADO  DE 20 CM DE ESPESOR PARA RECIBIR EL BROCAL, SUMINISTRO Y COL. DE ESCALERA MARINA A BASE DE VARILLA CORRUGADA DEL No.8 (1\"). HUELLA DE 50 CM. CON UNA SEPARACION @ 40 CM (CON PRIMER ANTICORROSIVO). MATERIALES, MANO DE OBRA Y HERRAMIENTA. INCLUYE: EXCAVACION, RELLENO COMPACTADO AL 95% EN CAPAS DE 20 CM (NO INCLUYE BROCAL DE Fo.Fo.)","PZA",1," ",{"$error":"#NAME?"},0,0]
[null,17,"CONSTRUCCION DE POZO DE VISITA TIPO COMUN DE 3.00 M DE PROFUNDIDAD INTERIOR, LOSA DE CIMENTACION DE CONCRETO F´c=200 Kg/cm2. REV. NORMAL. T.M.A. 3/4\" DE 20 CM DE ESPESOR. ARMADA CON VARILLA CORRUGADA DEL No. 4 (1/2\") @ 15 CM EN AMBOS SENTIDOS, MEDIA CAÑA PULIDA DE LA 1/2 DEL DIAMETRO, Y CHAFLANES DE CONCRETO HASTA LA PARTE SUPERIOR DEL TUBO, MURO DE TABIQUE TIPO CUÑA DE 12 CM DE PERALTE. JUNTEADO Y APLANADO CON MORTERO DE CEMENTO-ARENA 1:4, APLANADO INTERIOR PULIDO, ANILLO PROTECTOR DE CONCRETO ARMADO  DE 20 CM DE ESPESOR PARA RECIBIR EL BROCAL, SUMINISTRO Y COL. DE ESCALERA MARINA A BASE DE VARILLA CORRUGADA DEL No.8 (1\"). HUELLA DE 50 CM. CON UNA SEPARACION @ 40 CM (CON PRIMER ANTICORROSIVO). MATERIALES, MANO DE OBRA Y HERRAMIENTA. INCLUYE: EXCAVACION, RELLENO COMPACTADO AL 95% EN CAPAS DE 20 CM (NO INCLUYE BROCAL DE Fo.Fo.)","PZA",1," ",{"$error":"#NAME?"},0,0]
[null,18,"CARGA Y RETIRO DE MATERIAL MIXTO, SOBRANTE NO UTILIZABLE PRODUCTO DE LOS TRABAJOS REALIZADOS, FUERA DE LA OBRA HASTA EL SITIO AUTORIZADO, SEGUN LO INDIQUE LA SUPERVISION. INCLUYE: ACARREOS DENTRO DE LA OBRA, MANO DE OBRA, HERRAMIENTA Y EQUIPO NECESARIO.","M3",28," ",{"$error":"#NAME?"},0,0]
[null,null,"SUB TOTAL :  SANEAMIENTO DE LA RED DE DRENAJE",null,null,null,null,{"$f":"SUM(H77:H94)","v":0},0]
[null,null,"III.- GUARNICIONES",null,null,null,null,null,0]
[null,1,"EXCAVACION A MANO EN TERRENO CON CUALQUIER CLASIFICACION Y PROFUNDIDAD EN PRESENCIA DE AGUA O EN SECO, PARA DESPLANTE DE GUARNICION. INCLUYE: TRAZO, NIVELACION, AFINE DE FONDO Y TALUDES, RETIRO DE MATERIAL HASTA 4 MTS. DE DISTANCIA HORIZONTAL, MATERIALES, MANO DE OBRA, HERRAMIENTA Y EQUIPO NECESARIO","M3",25," ",{"$error":"#NAME?"},{"$f":"ROUND(E97*F97,2)","v":0},0]
[null,2,"GUARNICION DE CONCRETO F´c=150 kg/cm2. R.N. T.M.A. 19 MM. DE 15X20X40 CM DE SECCION TRAPEZOIDAL, CON JUNTAS DE EXPANSION A CADA 4.50 M. CON CARTON ASFALTADO DE 3/8\" DE ESPESOR. INCLUYE: CIMBRA, DESCIMBRADO, ELABORACION, COLADO, VIBRADO Y CURADO DEL CONCRETO,  TRANSPORTE A LA SIGUIENTE POSICION, MATERIALES, MANO DE OBRA Y HERRAMIENTA","ML",522.70000000000005," ",{"$error":"#NAME?"},0,0]
[null,{"$f":"B98+1","v":3},"CONFINAMIENTO DE GUARNICION CON MATERIAL SELECCIONADO PRODUCTO DE LA EXCAVACION LIBRE DE BOLEO MAYOR DE 3\" INCL: ACARREOS Y MANO DE OBRA","ML",522.70000000000005," ",{"$error":"#NAME?"},0,0]
[null,{"$f":"B99+1","v":4},"SUMINISTRO Y APLICACIÓN DE PINTURA VINILICA AHULADA MARCA COMEX, EN COLOR BLANCO O AMARILLO (PREVIAMENTE AUTORIZADO) EN TRAMOS RECTOS Y ROJO EN CURVAS, A DOS MANOS EN GUANICIONES DE CONCRETO, INCLUYE: PREPARACION DE LA SUPERFICIE, LIMPIEZA, MATERIALES, MANO DE OBRA Y HERRAMIENTA.","ML",522.70000000000005," ",{"$error":"#NAME?"},0,0]
[null,5,"DEMOLICION DE GUARNICIONES DE CONCRETO EXISTENTES POR ENCONTRARSE EN MALAS CONDICIONES Y/O NO DAR LOS NIVELES DE PROYECTO. INCLUYE: CORTE CON CORTADORA DE DISCO, CARGA Y RETIRO DE ESCOMBRO FUERA DE LA OBRA HASTA EL LUGAR INDICADO POR LA SUPERVISION, LA MANO DE OBRA, HERRAMIENTA Y EQUIPO NECESARIO.","ML",26.4," ",{"$error":"#NAME?"},0,0]
[null,null,"SUB TOTAL :  GUARNICIONES",null,null,null,null,{"$f":"SUM(H97:H101)","v":0},0]
[null,null,"IV.- CONSTRUCCION DE BANQUETAS",null,null,null,null,null,0]
[null,1,"CONSTRUCCION DE BANQUETAS DE 8 CM DE ESPESOR, ACABADO, PULIDO Y RAYADO ESCOBILLADO, EN LOSAS DE 1.50 M DE ANCHO EN PROMEDIO, SE USARA EL SISTEMA DE LOSAS INTERCALADAS CON UNA RELACION LARGO/ANCHO DE HASTA 1.50, JUNTAS FRIAS ACABADO CON VOLTEADOR.  EL CONCRETO SERA F´c= 150 KG/CM2. T.M.A. 3/4\". REV. DE 8 A 10 CM PREMEZCLADO ELABORADO EN PLANTA, INCLUYE: SUMINISTRO, COLADO, EXTENDIDO, VIBRADO Y ACARREOS DEL CONCRETO, SUMINISTRO Y APLICACIÓN DE CURACRETO EN COLOR BLANCO MARCA PASA O SIKA, CON EL EQUIPO ADECUADO, Y EN LA PROPORCION INDICADA POR EL FABRICANTE, CIMBRA EN FRONTERAS, NIVELACION, AFINE, COMPACTACION AL 95 % EN UN ESPESOR DE 15 CM Y PREPARACION DE LA SUPERFICIE DEL TERRENO, ACARREOS DE LOS MATERIALES DENTRO DE LA OBRA, LIMPIEZA GENERAL ANTES Y UNA VEZ CONCLUIDOS LOS TRABAJOS, CARGA Y ACARREO DE LOS MATERIALES NO UTILIZABLES HASTA EL LUGAR INDICADO POR SUPERVISION, TRAZO Y NIVELACION, LOS MATERIALES, MANO DE OBRA,  HERRAMIENTA Y EQUIPO NECESARIO. U.O.T.\nNOTA: EL LICITANTE DEBERA DE CONSIDERAR LAS PRUEBAS DE LABORATORIO RESPECTIVAS EFECTUADAS POR UN LABORATORIO EXTERNO AL MISMO Y PRESENTARSE AL MOMENTO DE REALIZAR EL TRAMITE PARA EL PAGO DE ESTIMACIONES","M2",610," ",{"$error":"#NAME?"},{"$f":"ROUND(E104*F104,2)","v":0},0]
[null,{"$f":"B104+1","v":2},"CONSTRUCCION DE BANQUETAS DE 8 CM DE ESPESOR ARMADA CON MALLA-LACK 6x6-10/10. EN ZONA DE COCHERA, ACABADO, PULIDO Y RAYADO ESCOBILLADO, EN LOSAS DE SECCION VARIABLE, JUNTAS FRIAS ACABADO CON VOLTEADOR. EL CONCRETO SERA F´c=150 KG/CM2. T.M.A. 3/4\". REV. DE 8 A 10 CM PREMEZCLADO ELABORADO EN PLANTA, INCLUYE: SUMINISTRO, COLADO, EXTENDIDO, VIBRADO Y ACARREOS DEL CONCRETO, SUMINISTRO Y APLICACIÓN DE CURACRETO EN COLOR BLANCO MARCA PASA O SIKA, CON EL EQUIPO ADECUADO, Y EN LA PROPORCION INDICADA POR EL FABRICANTE, CIMBRA EN FRONTERAS, NIVELACION, AFINE, COMPACTACION AL 95 % EN UN ESPESOR DE 15 CM Y  PREPARACION DE LA SUPERFICIE DEL TERRENO, ACARREOS DE LOS MATERIALES DENTRO DE LA OBRA, LIMPIEZA GENERAL ANTES Y UNA VEZ CONCLUIDOS LOS TRABAJOS, CARGA Y   ACARREOS DE LOS MATERIALES NO UTILIZABLES HASTA EL LUGAR INDICADO POR SUPERVISION, TRAZO Y NIVELACION, MATERIALES, MANO DE OBRA,  HERRAMIENTA Y EQUIPO NECESARIO. U.O.T.\nNOTA: EL LICITANTE DEBERA DE CONSIDERAR LAS PRUEBAS DE LABORATORIO RESPECTIVAS EFECTUADAS POR UN LABORATORIO EXTERNO AL MISMO Y PRESENTARSE AL MOMENTO DE REA LIZAR EL TRAMITE PARA EL PAGO DE ESTIMACIONES","M2",150," ",{"$error":"#NAME?"},0,0]
[null,{"$f":"B105+1","v":3},"FABRICACION DE RAMPAS PARA EL ACCESO DE PERSONAS CON CAPACIDADES DIFERENTES, DE CONCRETO DE 8 CM DE ESPESOR, Y CON UNA PENDIENTE MAXIMA DEL 8%, ACABADO PULIDO Y RAYADO TRANSVERSAL CON PEINE METALICO PARA DAR ACABADO ANTIDERRAPANTE, EN LOSAS DE 1.20 M. DE ANCHO COMO MINIMO. CON BORDES LATERALES DE 10 CM DE ALTURA Y 10 CM DE ANCHO DE CONCRETO, EN EL DESARROLLO LONGITUDINAL DE LA RAMPA, ACABADO EN ARISTAS CON VOLTEADOR. EL CONCRETO SERA F´c=150 KG/CM2. T.M.A. 3/4\". REV. DE 8 A 10 CM. PREMEZCLADO ELABORADO EN PLANTA. INCLUYE: SUMINISTRO, COLADO, EXTENDIDO, VIBRADO Y ACARREOS DEL CONCRETO, SUMINISTRO Y APLICACION DE CURACRETO EN COLOR BLANCO MARCA PASA O SIKA, CON EL EQUIPO ADECUADO, Y EN LA PROPORCION INDICADA POR EL FABRICANTE, CIMBRA EN FRONTERAS, NIVELACION, AFINE, COMPACTACION AL 95 % EN UN ESPESOR DE 15 CM Y PREPARACION DE LA SUPERFICIE DEL TERRENO, ACARREOS DE LOS MATERIALES DENTRO DE LA OBRA, LIMPIEZA GENERAL ANTES Y UNA VEZ CONCLUIDOS LOS TRABAJOS, CARGA Y ACARREOS DE LOS MATERIALES NO UTILIZABLES HASTA EL LUGAR INDICADO POR SUPERVISION, TRAZO Y NIVELACION, MATERIALES, MANO DE OBRA, HERRAMIENTA Y EQUIPO NECESARIO. U.O.T. (NOTA: EL LICITANTE DEBERA DE CONSIDERAR LAS PRUEBAS DE LABORATORIO RESPECTIVAS, EFECTUADAS POR UN LABORATORIO EXTERNO AL MISMO Y PRESENTARSE AL MOMENTO DE REALIZAR EL TRAMITE PARA EL PAGO DE ESTIMACIONES)","M2",30," ",{"$error":"#NAME?"},0,0]
[null,{"$f":"B106+1","v":4},"EXCAVACION EN CORTE EN MATERIAL INVESTIGADO EN OBRA, EN AREAS DE BANQUETAS, RAMPAS Y ADYACENTES, PARA DAR NIVELES DE PROYECTO. INCLUYE: TRAZO Y NIVELACION, CARGA, ACARREOS DENTRO Y FUERA DE LA OBRA DEL MATERIAL NO UTILIZABLE HASTA EL LUGAR INDICADO POR SUPERVISION, LA MANO DE OBRA, HERRAMIENTA Y EQUIPO NECESARIO","M3",12," ",{"$error":"#NAME?"},0,0]
[null,{"$f":"B107+1","v":5},"RELLENO COMPACTADO CON EQUIPO MECANICO CON MATERIAL SELECCIONADO PRODUCTO DE BANCO, LIBRE DE BOLEO MAYOR DE 3\", EN CAPAS DE 20 CM, COMPACTADO AL 90% PROCTOR, PARA DESPLANTE DE BANQUETAS Y GUARNICIONES ADYACENTES, PARA DAR NIVELES DE PROYECTO, SEGUN INDICACIONES DE SUPERVISION. INCLUYE: CRIBADO DEL MATERIAL, ACARREOS DENTRO DE LA OBRA, INCORPORACION DE HUMEDAD, MANO DE OBRA, HERRAMIENTA Y EQUIPO NECESARIO.","M3",148," ",{"$error":"#NAME?"},0,0]
[null,6,"RELLENO COMPACTADO CON EQUIPO MECANICO CON MATERIAL SELECCIONADO PRODUCTO DE EXCAVACION EN CORTE, LIBRE DE BOLEO MAYOR DE 3\", EN CAPAS DE 20 CM, COMPACTADO AL 85% PROCTOR, EN AREAS DE BANQUETAS Y ADYACENTES PARA DAR NIVELES DE PROYECTO, SEGÚN INDICACIONES DE SUPERVISION. INCLUYE: CRIBADO DE MATERIAL, CARGA Y ACARREOS DENTRO DE LA OBRA, INCORPORACION DE HUMEDAD, MANO DE OBRA, HERRAMIENTA Y EQUIPO NECESARIO","M3",102," ",{"$error":"#NAME?"},0,0]
[null,{"$f":"B109+1","v":7},"PINTADO DE SIMBOLO INTERNACIONAL  PERSONAS CON CAPACIDADES DIRERENTES EN DISEÑO Y DIMENSIONES SEGÚN LA NORMATIVIDAD VIGENTE ( N.T.C.  DEL REGLAMENTO DE CONSTRUCCIONES PARA EL ESTADO DE BAJA CALIFORNIA SUR)  EN RAMPAS DE ACCESO, LA FIGURA Y SU  CONTORNO SERA CON PINTURA EN COLOR AMARILLO TRANSITO. INCLUYE: LIMPIEZA Y PREPARACION DE LA SUPERFICIE, TRAZOS NECESARIOS, MOLDES, MATERIALES, MANO DE OBRA, HERRAMIENTA NECESARIA","PZA",4," ",{"$error":"#NAME?"},{"$f":"ROUND(E110*F110,2)","v":0},0]
[null,8,"SUM. Y APLIC. DE PINTURA EN COLOR AZUL PANTONE No. 294 SEGÚN LA NORMATIVIDAD VIGENTE  (N.T.C. DEL REGLAMENTO DE CONSTRUCCIONES PARA EL ESTADO DE BAJA CALIFORNIA SUR)  EN RAMPAS DE ACEESO A PERSONAS CON CAPACIDADES DIFRENTES,  INCLUYE:  PREP. DE LA SUPERFICIE Y LIMPIEZA, TRAZOS NECESARIOS, MANO DE OBRA Y HERRAMIENTA NECESARIA","M2",30," ",{"$error":"#NAME?"},{"$f":"ROUND(E111*F111,2)","v":0},0]
[null,9,"DEMOLICION DE BANQUETAS Y/O RAMPAS EN COCHERAS DE CONCRETO (CON O SIN ARMADO)  EXISTENTES POR ENCONTRARSE EN MALAS CONDICIONES Y/O NO DAR LOS NIVELES DE PROYECTO . INCLUYE: CORTE CON CORTADORA DE DISCO, LIMPIEZA, CARGA Y RETIRO DE ESCOMBRO FUERA DE LA OBRA HASTA EL LUGAR INDICADO POR LA SUPERVISION, LA MANO DE OBRA, HERRAMIENTA Y EQUIPO NECESARIO.","M2",44.21," ",{"$error":"#NAME?"},{"$f":"ROUND(E112*F112,2)","v":0},0]
[null,null,"SUB TOTAL :  CONSTRUCCION DE BANQUETAS",null,null,null,null,{"$f":"SUM(H104:H112)","v":0},0]
[null,null,"IV.- TERRACERIAS",null,null," ",null,null,0]
[null,{"$f":"B114+1","v":1},"TRAZO Y NIVELACION TOPOGRAFICA DEL TERRENO PARA TERRACERIAS. AL AMPARO DE ESTE CONCEPTO EL CONTRATISTA REALIZARA EL LEVANTAMIENTO TOPOGRAFICO DE LA SUPERFICIE EXISTENTE PREVIO AL INICIO DE LOS TRABAJOS, EL TRAZO Y NIVELACION CON EQUIPO DE TOPOGRAFIA DE LOS EJES, LIMITES, REFERENCIAS, MOJONERAS, BANCOS DE NIVEL Y DETALLES CONSTRUCTIVOS DE LOS TRABAJOS. (RESPETANDO EL NIVEL DE LA RASANTE EXISTENTE DURANTE TODAS LAS ETAPAS DEL PROCESO CONSTRUCTIVO), DEBERA COLOCAR REFERENCIAS FIJAS, FUERA DE LAS AREAS DE LOS TRABAJOS PARA ASEGURAR LOS ALINEAMIENTOS Y NIVELES. INCLUYE: LOS MATERIALES, HILO PLÁSTICO, MADERA, CALHIDRA, CONCRETO PARA MOJONERAS, MANO DE OBRA, HERRAMIENTA, EQUIPO NECESARIO Y VERIFICACIÓN EN TODO EL PROCESO DE LA OBRA.","M2",2389.04," ",{"$f":"num_letras(F115)","v":{"$error":"#NAME?"}},{"$f":"ROUND(E115*F115,2)","v":0},0]
[null,2,"EXCAVACION Y/O CORTE POR MEDIOS MECANICOS EN TERRENO CON CUALQUIER CLASIFICACION PARA LA ELABORACION DE CAJA, CON ESPESOR VARIABLE PARA DAR EL NIVEL DE SUBRASANTE. INCLUYE: ESCARIFICADO, ACAMELLONADO DEL MATERIAL PARA SER RETIRADO, Y EL EQUIPO NECESARIO.","M3",1096.21," ",{"$error":"#NAME?"},0,{"$f":"ROUND(E116*F116,2)","v":0}]
[null,3,"CARGA Y ACARREO POR MEDIOS MECANICOS DEL MATERIAL PRODUCTO DEL CORTE NO UTILIZABLE PARA EL PRIMER KILOMETRO DE DISTANCIA. INCLUYE EL EQUIPO NECESARIO","M3",1096.21," ",{"$error":"#NAME?"},0,0]
[null,4,"ACARREO  EN CAMION DEL MATERIAL PRODUCTO DEL CORTE PARA KILOMETROS SUBSECUENTES. INCLUYE: EL EQUIPO NECESARIO","M3-KM",5480," ",{"$error":"#NAME?"},0,0]
[null,5,"AFINE DE TERRACERIAS PARA DAR NIVELES DE PROYECTO DEFINITIVOS. INCLUYE: ESCARIFICADO, APERTURA DE CAJA, PAPEO DEL MATERIAL MAYOR A 3\" MANUAL, FORMACION DE LA CAPA SUBRASANTE, INCORPORACION DE HUMEDAD OPTIMA, TENDIDO, AFINE Y COMPACTACION AL 95% DE SU  PVSM DE LA PRUEBA PROCTOR MODIFICADA  (ASSHTO), CON MATERIAL SELECCIONADO PRODUCTO DE CORTES, CARGA Y ACARREOS. CON UN ESPESOR DE 30 CM, EN TERRENO CON CUALQUIER CLASIFICACION. INCLUYE. LA MANO DE OBRA, Y EQUIPO NECESARIO","M2",2389.04," ",{"$error":"#NAME?"},0,0]
[null,6,"RIEGO DE IMPREGNACION A LA SUBRASANTE CON ASFALTO FM-1 Y/O FR-3 REBAJADO AL 8% EN VOLUMEN CON DIESEL, EN PROPORCIÓN DE 1.6 LTS/M² (NO SE ACEPTARA EL USO DE EMULSIONES). INCLUYE: BARRIDO Y LIMPIEZA PREVIA DE LA SUPERFICIE (RETIRO FUERA DE LA OBRA DE LOS MATERIALES PRODUCTO DE LA MISMA), CARGA, CALENTADO, FLETE, ACARREOS Y APLICACIÓN DEL ASFALTO, EN CASO DE SER NECESARIO SE REALIZARA UN ARENEO EN LAS ZONAS DONDE NO PENETRE LA IMPREGNACIÓN, EN UN TIEMPO NO MENOR DE 24 HRS., DESPUÉS DEL RIEGO, LOS MATERIALES, MANO DE OBRA, HERRAMIENTA, EQUIPO NECESARIO. (INCLUYE EL COSTO DEL ASFALTO). P.U.O.T.","M2",2224.23," ",{"$error":"#NAME?"},0,0]
[null,7,"CONSTRUCCION DE CAPA ROMPEDORA DE CAPILARIDAD (FILTRO), CON MATERIAL NO COMPATABLE CONFORME A LA GRANULOMETRIA INDICADA, EL MATERIAL SERA PROCEDENTE DE BANCO PROPUESTO POR EL CONTRATISTA, PARA EL DESPLANTE DE TERRAPLEN. INCLUYE: ESCARIFICADO, TENDIDO, INCORPORACION DE HUMEDAD, ACAMELLONADO EN ALAS, AFINE, CARGA Y ACARREO DEL MATERIAL NO UTILIZABLE DENTRO Y FUERA DE LA OBRA HASTA EL LUGAR INDICADO POR SUPERVISION, LA MANO DE OBRA, HERRAMIENTA Y EQUIPO NECESARIO.","M3",254.79," ",{"$error":"#NAME?"},0,0]
[null,8,"SUMINISTRO E INSTALACION DE TUBERÍA CONDUIT DE PVC PARED GRUESA, DE 2\" DE DIAMETRO. PARA PREPARACION DE INSTALACION ELECTRICA EN ALUMBRADO PUBLICO. INCLUYE: INCLUYE: TRAZO, EXCAVACIÓN, RELLENO COMPACTADO AL 85 % MINIMO, MATERIAL DIVERSO DE INSTALACION, CONEXION AL REGISTRO ELECTRICO, ELEMENTOS DE PROTECCION EN LOS EXTREMOS PARA EVITAR LA INTRODUCCION DE CUALQUIER MATERIAL, MANO DE OBRA, HERRAMIENTA Y EQUIPO.","ML",280," ",{"$error":"#NAME?"},0,0]
[null,null,"SUB TOTAL :  TERRACERIAS",null,null,null,null,{"$f":"SUM(H115:H122)","v":0},0]
[null,null,"V.- PAVIMENTACION",null,null," ",null,null,0]
[null,1,"TRAZO Y NIVELACION TOPOGRAFICA DEL TERRENO PARA TERRACERIAS. AL AMPARO DE ESTE CONCEPTO EL CONTRATISTA REALIZARA EL LEVANTAMIENTO TOPOGRAFICO DE LA SUPERFICIE EXISTENTE PREVIO AL INICIO DE LOS TRABAJOS, EL TRAZO Y NIVELACION CON EQUIPO DE TOPOGRAFIA DE LOS EJES, LIMITES, REFERENCIAS, MOJONERAS, BANCOS DE NIVEL Y DETALLES CONSTRUCTIVOS DE LOS TRABAJOS. (RESPETANDO EL NIVEL DE LA RASANTE EXISTENTE DURANTE TODAS LAS ETAPAS DEL PROCESO CONSTRUCTIVO), DEBERA COLOCAR REFERENCIAS FIJAS, FUERA DE LAS AREAS DE LOS TRABAJOS PARA ASEGURAR LOS ALINEAMIENTOS Y NIVELES. INCLUYE: LOS MATERIALES, HILO PLÁSTICO, MADERA, CALHIDRA, CONCRETO PARA MOJONERAS, MANO DE OBRA, HERRAMIENTA, EQUIPO NECESARIO Y VERIFICACIÓN EN TODO EL PROCESO DE LA OBRA.","M2",2124," ",{"$f":"num_letras(F125)","v":{"$error":"#NAME?"}},{"$f":"ROUND(E125*F125,2)","v":0},0]
[null,{"$f":"B125+1","v":2},"CONSTRUCCION  DE  BASE  HIDRAULICA  CON  MATERIAL PETREO A TAMAÑO MAXIMO DE 1 1/2\", PARCIALMENTE TRITURADO PROVENIENTE DE BANCO. INCLUYE: ACARREOS, INCORPORACION DE HUMEDAD, HOMOGENIZACION, TENDIDO, AFINE Y COMPACTACION AL 100% DE SU PVSM, ESPESOR DE 20 CM. COMPACTOS, LIMPIEZA PREVIA DEL AREA, MANO DE OBRA, MATERIALES, HERRAMIENTA, EQUIPO NECESARIO.","M2",2124," ",{"$error":"#NAME?"},0,0]
[null,{"$f":"B126+1","v":3},"RIEGO DE IMPREGNACION CON ASFALTO FM-1 Y/O FR-3 REBAJADO AL 8% EN VOLUMEN CON DIESEL, EN PROPORCIÓN DE 1.5 LTS/M² (NO SE ACEPTARA EL USO DE EMULSIONES). INCLUYE: BARRIDO Y LIMPIEZA PREVIA DE LA SUPERFICIE (RETIRO FUERA DE LA OBRA DE LOS MATERIALES PRODUCTO DE LA MISMA), CARGA, CALENTADO, FLETE, ACARREOS Y APLICACIÓN DEL ASFALTO, EN CASO DE SER NECESARIO SE REALIZARA UN ARENEO EN LAS ZONAS DONDE NO PENETRE LA IMPREGNACIÓN, EN UN TIEMPO NO MENOR DE 24 HRS., DESPUÉS DEL RIEGO, LOS MATERIALES, MANO DE OBRA, HERRAMIENTA, EQUIPO NECESARIO. (INCLUYE EL COSTO DEL ASFALTO). P.U.O.T..\nNOTA: AL EFECTUAR ESTE CONCEPTO, DEBERA CUIDARSE NO MANCHAR LAS GUARNICIONES Y BANQUETAS, EN CUYO CASO SE TENDRAN QUE LIMPIAR SEGUN INDICACIONES DE LA SUPERVISION DE OBRA","M2",2124," ",{"$error":"#NAME?"},0,0]
[null,4,"SUMINISTRO Y COLOCACION DE CONCRETO HIDRAULICO PREMEZCLADO MR42 KG/CM2  DE FRAGUADO A 14 (CATORCE) DÍAS, AUTOCURABLE HIDRATIUM O SIMILAR, T.M.A. DE 1 1/2\"\". REV. DE 8 (± 2.0 CM.), MUESTREO EN OBRA, CEMENTO TIPO CPC40. SEGÚN NORMA NMX-C-414, AGREGADO GRUESO TRITURADO Y ARENA DE RIO. ELABORADO Y DOSIFICADO POR PESO EN PLANTA, EXTENDIDO EN LOSAS PARA PAVIMENTACIÓN CON ESPESOR DE 15 CM, TENDIDO Y NIVELADO CON RODILLOS VIBRATORIOS, VIBRADO, AVIONADO CON CHECK ROD Y BULL FLOAT PARA UNA CORRECTA PLANICIDAD ACABADO CON PEINE METALICO DE CERDAS METALICAS ESPACIADOS @ 3/4\"\" PARA DAR TEXTURA EN ACABADO RAYADO TRANSVERSAL, Y RAYADO LONGITUDINAL CON TELA DE YUTE; COLADO POR FRANJAS CON UNA RELACIÓN LARGO ANCHO NO MAYOR DE 1.25; MEMBRANA DE CURADO, PLASTICO CAL. 600 MICRAS DESPUES DEL ACABADO, PARA REFORZAR CURADO CORRECTO DE LAS LOSAS. INCLUYE TRAZO, NIVELACIÓN, SEÑALAMIENTO, BARRIDO Y PREPARACIÓN DE LA SUPERFICIE, CIMBRADO Y DESCIMBRADO, VIBRADO, ELABORACIÓN, MEZCLADO Y ACARREO DEL CONCRETO HASTA EL LUGAR DE LA OBRA CON UN MÍNIMO DE CAMIONES REVOLVEDORES, PARA MANTENER UNA FRECUENCIA MINIMA DE 15 MINUTOS ENTRE UNIDADES DE ACUERDO AL CICLO REQUERIDO (PARA EVITAR LA FORMACIÓN DE JUNTAS FRÍAS DEL CONCRETO), PASA JUNTAS DE VARILLA LISA DE 3/4\"\" GRADO 60, DE 46 CM DE LARGO @ 30 CM, EN FORMA TRANSVERSAL Y COLOCADAS A CADA 3.50 M, (CON UN  EXTREMO ENGRASADO, FUNDA O PINTURA ANTIADHERENTE); BARRA DE AMARRE EN JUNTA LONG. CON VARILLA CORRUGADA DEL #4 F´Y=4200 KG/CM2 DE 79 CM DE LARGO @ 76 CM, DE ESPACIAMIENTO; CON CANASTILLA METÁLICA, AHOGADAS EN EL CONCRETO EN EL ESPESOR MEDIO; CORTE DE JUNTAS TRANSVERSALES Y LONGITUDINALES CON CORTADORA DE DISCO DE DIAMANTE A UNA PROFUNDIDAD DE 1/3 DEL PERALTE DE LA LOSA, MODULACIÓN DE TABLEROS SEGUN PROYECTO, PARA PREVENIR AGRIETAMIENTOS POR TEMPERATURA,  LIMPIEZA CON AIRE A PRESIÓN, Y  RELLENO EN JUNTA CONSTRUCTIVA CON CINTILLA DE POLIETILENO DE 3/8\"\" (BACKER ROD) , Y SELLADOR AUTONIVELANTE A BASE DE  POLIURETANO-ASFALTO TIPO SONOMERIC 1 Ó SIMILAR. INCLUYE: MATERIALES, MANO DE OBRA, HERRAMIENTA Y EQUIPO NECESARIO, CAPACIDAD INSTALADA PARA PRODUCIR Y SUMINISTRAR CONCRETO PREMEZCLADO CONFORME A PROGRAMA DE OBRA. (COLADOS NOCTURNOS).\nNOTA: EL LICITANTE DEBERA DE CONSIDERAR LAS PRUEBAS DE LABORATORIO RESPECTIVAS, EFECTUADAS POR UN LABORATORIO EXTERNO AL MISMO Y PRESENTARSE AL MOMENTO DE REALIZAR EL TRAMITE PARA EL PAGO DE ESTIMACIONES), INCLUYE: LIMPIEZA GENERAL (FINA Y GRUESA). VER ESPECIFICACIONES PARTICULARES Y APEGARSE A LAS NORMAS DE LA SCT. VIGENTES\n\n","M2",2024," ",{"$error":"#NAME?"},0,0]
[null,5,"SUMINISTRO Y COLOCACIÓN DE JUNTA DE DILATACIÓN ENTRE EL CONCRETO VIEJO Y EL CONCRETO NUEVO, PARA EVITAR LAS FALLAS POR DILATACIÓN Y CONTRACCIÓN A BASE DE CARTÓN ASFALTADO DE 1/2\" DE ESPESOR Y 15 CM DE ALTURA EN EL PERÍMETRO TOTAL, INCLUYE: LA FIJACIÓN CON CLAVO DE ACERO, CORTE DEL CARTÓN, DESPERDICIOS, ALINEACIÓN Y CUIDADO DURANTE EL COLADO, MATERIALES, MANO DE OBRA Y HERRAMIENTA","ML",17.36," ",{"$error":"#NAME?"},0,0]
[null,6,"CONSTRUCCION DE DENTELLON DE CONCRETO F'C=150 KG/CM2. T.M.A. 3/4\". DE 15x50 CM DE SECCION. EN REMATE DE PAVIMENTO. INCLUYE: TRAZO, NIVELACION, EXCAVACION, RELLENO COMPACTADO, CIMBRADO Y DESCIMBRADO, COLADO, VIBRADO Y CURADO DE CONCRETO, MATERIALES, MANO DE OBRA Y HERRAMIENTA.","ML",5," ",{"$error":"#NAME?"},0,0]
[null,7,"LIMPIEZA DE OBRA TERMINADA. INCLUYE: ACOPIO, CARGA, ACARREO DE MATERIALES Y ESCOMBRO PRODUCTO DE LOS TRABAJOS EJECUTADOS FUERA DE LA OBRA, HASTA EL SITIO AUTORIZADO, SEGUN LO INDIQUE LA SUPERVISION, LA MANO DE OBRA, HERRAMIENTA Y EQUIPO NECESARIO.","M2",2389.04," ",{"$error":"#NAME?"},0,0]
[null,null,"SUB TOTAL :  PAVIMENTACION",null,null,null,null,{"$f":"SUM(H125:H131)","v":0},0]
[null,null,"VIII.- SEÑALAMIENTO VERTICAL Y HORIZONTAL",null,null,null,null,null,0]
[null,1,"SUMINISTRO Y COLOCACION LETRERO INFORMATIVO DE LA OBRA\" DE DOSCIENTOS CUARENTA Y CUATRO CENTÍMETROS (244 CM), POR CUATROCIENTOS OCHENTA Y OCHO CENTÍMETROS (488 CM), CON LA LEYENDA Y LOGOTIPOS QUE OPORTUNAMENTE SE LE PROPORCIONE. CADA LETRERO SE FORMARÁ CON UN BASTIDOR METÁLICO CON PERFILES COMERCIALES ADECUADOS Y RESISTENTES A LA ACCIÓN DEL VIENTO. SOPORTADOS CON COLUMNAS DE ACERO ESTRUCTURAL A-36 GALVANIZADAS DE TIPO IPR DE 4”X4” X 22.3 KG/M Y ANCLADAS CON CUATRO (4) ANCLAS DE ACERO COMERCIAL DE UNA (1) PULGADA DE DIÁMETRO EN CADA COLUMNA, AHOGADAS EN MUERTOS DE CONCRETO F´C=200 KG/CM2. TMA ¾, REV. NORMAL. SOBRE EL BASTIDOR SE COLOCARÁ UNA LÁMINA DEL NÚMERO DIECIOCHO (18) DOBLÁNDOLA HACIA ATRÁS Y ATORNILLÁNDOLA EN TODO EL PERÍMETRO. PARA EL FONDO DEL LETRERO, LOGOTIPOS Y LA LEYENDA ALUSIVA, ASÍ COMO EN LA ESTRUCTURA METÁLICA SE USARÁ PRIMER ANTICORROSIVO, PINTURA DE ESMALTE DE COLOR PREVIAMENTE AUTORIZADO. SE LE DARÁ UN MANTENIMIENTO ADECUADO APLICANDO UN REPINTADO CUANDO SE LE INDIQUE.","PZA",1," ",{"$f":"num_letras(F134)","v":{"$error":"#NAME?"}},{"$f":"ROUND(E134*F134,2)","v":0},0]
[null,{"$f":"B134+1","v":2},"SUMINISTRO Y COLOCACION DE SEÑAL TIPO REGLAMENTARIA (RESTRICTIVA Y/O PREVENTIVA) SEGUN NORMAS DE LA DIRECCION DE TRANSITO MUNICIPAL DE 61 x 61 CM SIN CEJA FABRICADA EN LAMINA GALVANIZADA CAL.16 CON POSTE CUADRADO DE 1 1/2\" x 1 1/2\" CAL.14  SUJETA CON TORNILLOS 3/8\" x 3\" Y TUERCAS CON GUASA DE PRESION, LAS IMPRESIONES DE LETRAS Y SIMBOLOS SERAN EN SCOTCHLITE GRADO INGENIERIA EN ALTA INTENSIDAD, AHOGADA EN CONCRETO F´c= 150 KG/CM2. LA PARTE POSTERIOR DE COLOR GRIS MATE, LA DISTANCIA Y ALTURA DE LA SEÑAL SERA LO INDICADO EN EL MANUAL DE DISPOSITIVO PARA EL CONTROL DEL TRANSITO EN CALLES Y CARRETERAS INCLUYE: MATERIALES, MANO DE OBRA Y HERRAMIENTA.","PZA",3," ",{"$error":"#NAME?"},{"$f":"ROUND(E135*F135,2)","v":0},0]
[null,3,"SUMINISTRO Y COLOCACION DE NOMENCLATURA DE CALLE CON DOS DE 20 x 91 CM FABRICADA EN LAMINA GALVANIZADA CAL.16 CON POSTE DE TUBO DE 2\" DE DIAMETRO CED. 30. SUJETA CON TORNILLOS DE 1/4\" x 1 1/2\", LAS IMPRESIONES DE LAS LETRAS Y SIMBOLOS SERAN EN SCOTCHLITE GRADO INGENIERIA EN ALTA INTENSIDAD, AHOGADA EN CONCRETO F´c= 150 KG/CM2. LA PARTE POSTERIOR DE COLOR GRIS MATE, LA DISTANCIA Y ALTURA DE LA SEÑAL SERA LO INDICADO EN EL MANUAL DE DISPOSITIVO PARA EL CONTROL DEL TRANSITO EN CALLES Y CARRETERAS. INCLUYE: MATERIALES, MANO DE OBRA Y HERRAMIENTA","PZA",2," ",{"$error":"#NAME?"},0,0]
[null,4,"PINTURA DE RAYA CENTRAL, SE PINTARA UN ANCHO DE 15 CM DE COLOR PREVIAMENTE AUTORIZADO CON PINTURA TERMOPLÁSTICA RETRORREFLEJANTE PARA TRAFICO Y SU APLICACION SERA SEGUN LO INDICADO EN EL MANUAL DE DISPOSITIVOS PARA EL CONTROL DEL TRANSITO EN CALLES Y CARRETERAS. INCLUYE: LIMPIEZA POR ASPERSION PARA ELIMINAR LA PRESENCIA DE POLVO, GRASA, ACEITE Y CUALQUIER MATERIAL, MATERIALES, MANO DE OBRA, HERRAMIENTA Y EQUIPO NECESARIO.","ML",272," ",{"$error":"#NAME?"},{"$f":"ROUND(E137*F137,2)","v":0},0]
[null,5,"RAYAS PARA CRUCE DE PEATONES: SUMINISTRO Y APLICACION DE PINTURA TERMOPLÁSTICA RETRORREFLEJANTE PARA TRAFICO, EN CRUCES PEATONALES TIPO MARIMBA EN EL SENTIDO DE LA CIRCULACIÓN DE LOS VEHICULOS. CONSISTENTE EN VARIAS FRANJAS DE 40 CM. DE ANCHO, SEPARADAS POR ESPACIOS LIBRES TAMBIEN. Y SU APLICACION SERA SEGUN LO INDICADO EN EL MANUAL DE DISPOSITIVOS PARA EL CONTROL DEL TRANSITO EN CALLES Y CARRETERAS. INCLUYE LIMPIEZA POR ASPERSION PARA ELIMINAR LA PRESENCIA DE POLVO, GRASA, ACEITE Y CUALQUIER MATERIAL, MATERIALES, MANO DE OBRA, HERRAMIENTA Y EQUIPO NECESARIO.","ML",58," ",{"$error":"#NAME?"},0,0]
[null,6,"SUMINISTRO Y APLICACIÓN DE PINTURA TERMOPLÁSTICA RETRORREFLEJANTE PARA TRAFICO, EN RAYAS DE PARADA CONSISTENTE EN UNA RAYA DE 40 CM, DE ANCHO PARALELA AL CRUCE PEATONAL Y SEPARADA 1.20 M, DE ESTE; Y SU APLICACION SERA SEGUN LO INDICADO EN EL MANUAL DE DISPOSITIVOS PARA EL CONTROL DEL TRANSITO EN CALLES Y CARRETERAS. INCLUYE LIMPIEZA POR ASPERSION, PARA ELIMINAR LA PRESENCIA DE POLVO, GRASA, ACEITE Y CUALQUIER MATERIAL, MATERIALES, MANO DE OBRA, HERRAMIENTA Y EQUIPO NECESARIO.","ML",12," ",{"$error":"#NAME?"},0,0]
[null,null,"SUB TOTAL :  SEÑALAMIENTO  VERTICAL Y HORIZONTAL",null,null," ",null,{"$f":"SUM(H134:H139)","v":0}]
[null,null,"TOTAL : ",null,null,null,null,{"$f":"+H75+H95+H102+H113+H123+H132+H140","v":0},{"$f":"SUM(I51:I139)","v":0}]